Cogmind - Beta 13 @@@ ROGUE MODE // 2024.04.24 @ 22:56:29 Player: sve9 Result: Destroyed by OO-5WH(R) with Subdweller Laser Performance ------------- Evolutions (0) 0 Regions Visited (2) 400 Robots Destroyed (5) 25 Value Destroyed (160) 160 Prototype IDs (0) 0 Alien Tech Used (0) 0 Bonus (0) 0 TOTAL SCORE: 585 Bonus ------- None Cogmind --------- Core Integrity 0/250 Matter 166/300 Energy 125/125 System Corruption 6% Temperature Cool (6) Movement Treading (160) Location -10/Subcaves Parts ------- > --- POWER (1) -------- Light Ion Engine > --- PROPULSION (2) --- Improved Treads Improved Treads > --- UTILITY (2) ------ Scrap Shield > --- WEAPON (2) ------- Heavy EM Pulse Gun Small Laser > --- INVENTORY (5) ---- Compact Wheel Heat Sink Small Storage Unit Peak State ------------ > --- POWER ------------ Light Ion Engine > --- PROPULSION ------- Improved Treads Improved Treads > --- UTILITY ---------- Improved Heat Sink Small Storage Unit > --- WEAPON ----------- Heavy EM Pulse Gun Heavy EM Pulse Gun > --- INVENTORY -------- Compact Wheel Heat Sink Small Laser [Rating: 13] Favorites ----------- Power Ion Engine Engine Ion Engine Propulsion Improved Treads Treads Improved Treads Leg Aluminum Leg Utility Small Storage Unit Device Improved Heat Sink Storage Small Storage Unit Protection Scrap Shield Weapon Small Laser Energy Gun Small Laser Ballistic Gun Light Assault Rifle Build | -11 -10 -10 ------- Run | Yrd Mat Sub Slots Evolved . | . . . Power . | . . . Propulsion . | . . . Utility . | . . . Weapon . | . . . Parts Attached 27 | 6 14 7 Power 4 | 1 2 1 Engine 4 | 1 2 1 Core . | . . . Reactor . | . . . Propulsion 11 | 2 7 2 Treads 8 | . 6 2 Leg 3 | 2 1 . Wheel . | . . . Hover . | . . . Flight . | . . . Utility 3 | 1 1 1 Device 1 | . 1 . Storage 1 | 1 . . Processor . | . . . Hackware . | . . . Protection 1 | . . 1 Artifact . | . . . Weapon 9 | 2 4 3 Energy Gun 7 | 1 3 3 Energy Cannon . | . . . Ballistic Gun 2 | 1 1 . Ballistic Cannon . | . . . Launcher . | . . . Special Weapon . | . . . Impact Weapon . | . . . Slashing Weapon . | . . . Piercing Weapon . | . . . Special Melee Weapon . | . . . Unidentified Prototypes . | . . . Corrupted Parts 2 | . 2 . System Corruption 6 | . 6 . Parts Lost 9 | . 3 6 Power 1 | . . 1 Propulsion 3 | . 1 2 Utility . | . . . Weapon 5 | . 2 3 Highest Loss Streak 3 | . 3 3 To Critical Strikes . | . . . Average Slot Usage (%) 94 | . 95 92 Engine 13 | . 13 13 Treads 21 | . 19 27 Leg 4 | . 7 . Device 11 | . 11 8 Storage 12 | . 14 8 Protection 1 | . . 4 Energy Gun 16 | . 13 22 Ballistic Gun 11 | . 14 4 Naked Turns . | . . . Heaviest Build 25 | 13 13 25 Greatest Support 46 | 20 46 46 Greatest Overweight (x) 2 | . 2 . Average Overweight (x) . | . . . Largest Inventory Capacity 8 | 8 8 8 Average Capacity 7 | 6 8 6 Most Carried 8 | 4 8 8 Average Carried 6 | 2 6 4 Final Capacity 8 | 8 8 5 Final Carried 8 | 4 8 3 Class Distribution -------------------- 100% | Mutant Dominant Class ---------------- Mutant | -10/Materials Mutant | -10/Subcaves Resources | -11 -10 -10 ----------- Run | Yrd Mat Sub Matter Collected 382 | 150 170 62 Remotely . | . . . Salvage Created 214 | . 170 44 Parts 13 | . 10 3 Haulers Intercepted . | . . . Recyclers Shooed . | . . . Parts Field Recycled . | . . . Retrieved Matter . | . . . Parts Self-Destructed 5 | . . 5 Prevented . | . . . Kills | -11 -10 -10 ------- Run | Yrd Mat Sub Combat Hostiles Destroyed 4 | . 3 1 Guns 4 | . 3 1 Classes Destroyed 3 | . 2 1 Builder 1 | . 1 . Grunt 3 | . 3 . Subdweller 1 | . . 1 Best Kill Streak 3 | . 3 1 Combat Bots Only 3 | . 3 1 Max Kills in Single Turn 1 | . 1 1 Gunslinging . | . . . Exploded . | . . . Melee . | . . . Uniques/NPCs Destroyed . | . . . Combat | -11 -10 -10 -------- Run | Yrd Mat Sub Hostile Shots Fired 85 | . 50 35 Missed 14 | . 7 7 Damage Taken 1381 | . 527 854 Core 263 | . 131 132 Absorbed by Shields . | . . . Core Remaining (%) 100 | 100 . . Volleys Fired 40 | . 27 13 Largest 2 | . 2 2 Hottest 90 | . 60 90 Shots Fired 71 | . 45 26 Gun 71 | . 45 26 Cannon . | . . . Launcher . | . . . Special . | . . . Kinetic 30 | . 28 2 Thermal 20 | . 8 12 Explosive . | . . . Electromagnetic 21 | . 9 12 Robot Hit Streak 21 | . 13 21 Robot Miss Streak 3 | . 3 2 Penetration Max . | . . . Secondary Targets . | . . . Shots Hit Robots 56 | . 33 23 Core Hits 16 | . 11 5 Critical Kills . | . . . Critical Parts Destroyed . | . . . Critical Strikes 1 | . . 1 Corrupt 1 | . . 1 Melee Attacks . | . . . Impact . | . . . Slashing . | . . . Piercing . | . . . Sneak Attacks . | . . . Combat Hostiles . | . . . Follow-up Attacks . | . . . Damage Inflicted 609 | . 329 280 Guns 599 | . 319 280 Cannons . | . . . Explosions . | . . . Melee . | . . . Ramming 10 | . 10 . Kinetic 187 | . 170 17 Thermal 173 | . 53 120 Explosive . | . . . Electromagnetic 239 | . 96 143 Impact . | . . . Slashing . | . . . Piercing . | . . . Highest Corruption 6 | . 6 6 Average Corruption 5 | . 5 6 Corruption Purged . | . . . Corruption Blocked . | . . . Effects 25 | . 18 7 Message Errors 5 | . 2 3 Matter Fused 9 | . 7 2 Heat Flow Errors 1 | . . 1 Energy Discharges 3 | . 3 . Parts Rejected 1 | . 1 . Parts Fused 1 | . 1 . Data Loss (minor) 2 | . 1 1 Data Loss (major) 1 | . 1 . Misfires 1 | . 1 . Alerts 1 | . 1 . Overload Shots . | . . . Overflow Damage . | . . . Projectiles . | . . . Explosions . | . . . Melee . | . . . Knockbacks . | . . . Impact . | . . . Kinetic . | . . . Secondary . | . . . Self-Inflicted Damage . | . . . Shots . | . . . Rammed 2 | . 2 . Targets Rammed 2 | . 2 . Kicked . | . . . Crushed . | . . . Highest Temperature 259 | . 259 74 Average Temperature 130 | . 133 48 Received Heat Transfer 507 | . 369 138 Siege Activations . | . . . Robots Corrupted . | . . . Combat Hostiles . | . . . Parts Fried 2 | . 1 1 Impact Corruptions . | . . . Robots Melted . | . . . Combat Hostiles . | . . . Parts Melted . | . . . Heat Transferred 400 | . 125 275 Parts Sabotaged . | . . . Parts Stolen . | . . . Parts Stripped . | . . . Power Chain Reactions . | . . . Alert | -11 -10 -10 ------- Run | Yrd Mat Sub Peak Influence 70 | . 70 . Initial . | . . . Average 37 | . 40 . Maximum Alert Level . | . . . Low Security (%) 100 | 100 100 . Level 1 . | . . . Level 2 . | . . . Level 3 . | . . . Level 4 . | . . . Level 5 . | . . . High Security . | . . . Max Security . | . . . Squads Dispatched 2 | . 2 . Investigation . | . . . Extermination . | . . . Reinforcement 2 | . 2 . Assault . | . . . Garrison . | . . . Intercept . | . . . Searches Triggered . | . . . Construction Impeded . | . . . Haulers Reinforced . | . . . Active Scanning Responses . | . . . Cargo Convoy Interrupts . | . . . Stealth | -11 -10 -10 --------- Run | Yrd Mat Sub Distress Signals 1 | . 1 . Communications Jammed . | . . . Distress Signals . | . . . Times Spotted 14 | . 9 5 Peak Tracking Total 5 | . 5 3 Tactical Retreats . | . . . Traps | -11 -10 -10 ------- Run | Yrd Mat Sub Traps Triggered 3 | . 3 . Indirectly . | . . . Trap Hack Attempts . | . . . Triggered . | . . . Disarmed . | . . . Reprogrammed . | . . . Reused . | . . . Traps Extracted . | . . . Installed . | . . . Triggered . | . . . Machines | -11 -10 -10 ---------- Run | Yrd Mat Sub Machines Disabled . | . . . Max in Single Turn . | . . . Machines Repaired . | . . . Machines Dismantled . | . . . Machines Sabotaged . | . . . Overloaded Fab Kills . | . . . Hacking | -11 -10 -10 --------- Run | Yrd Mat Sub Machines Accessed 1 | . 1 . Terminals 1 | . 1 . Fabricators . | . . . Repair Stations . | . . . Recycling Units . | . . . Scanalyzers . | . . . Garrison Access . | . . . Total Hacks 2 | . 2 . Successful 1 | . 1 . Failed 1 | . 1 . Catastrophic . | . . . Database Lockouts . | . . . Manual 2 | . 2 . Terminals 2 | . 2 . Fabricators . | . . . Repair Stations . | . . . Recycling Units . | . . . Scanalyzers . | . . . Garrison Access . | . . . Terminal Hacks . | . . . Fabricator Hacks . | . . . Repair Station Hacks . | . . . Recycling Unit Hacks . | . . . Scanalyzer . | . . . Garrison Access Hacks . | . . . Unauthorized Hacks 1 | . 1 . Terminals 1 | . 1 . Botnet 1 | . 1 . Fabricators . | . . . Repair Stations . | . . . Recycling Units . | . . . Scanalyzers . | . . . Garrison Access . | . . . Data Cores Recovered . | . . . Used . | . . . Hacking Detections 1 | . 1 . Full Trace Events . | . . . Feedback Events . | . . . Feedback Blocked . | . . . Robot Schematics Acquired . | . . . Robots Built . | . . . Authchips . | . . . Time . | . . . Total Robot Build Rating . | . . . Part Schematics Acquired . | . . . Parts Built . | . . . Authchips . | . . . Time . | . . . Total Part Build Rating . | . . . Parts Repaired . | . . . Time . | . . . Parts Recycled . | . . . Recycled Matter . | . . . Retrieved Matter . | . . . Retrieved Components . | . . . Parts Scanalyzed . | . . . Part Schematics Acquired . | . . . Parts Damaged . | . . . Bothacking | -11 -10 -10 ------------ Run | Yrd Mat Sub Used RIF Installer . | . . . Robots Hacked . | . . . Non-combat . | . . . Combat . | . . . Robot Hacks Applied . | . . . Relay Couplers Released . | . . . Fabnet Peak Effective % . | . . . Robots Rewired . | . . . Allies Hacked . | . . . Hacks Repelled . | . . . Allies | -11 -10 -10 -------- Run | Yrd Mat Sub Total Allies . | . . . Largest Group . | . . . Highest-Rated Group . | . . . Highest-Rated Ally . | . . . Total Orders . | . . . Ally Attacks . | . . . Total Damage . | . . . Kills . | . . . Allies Corrupted . | . . . Allies Melted . | . . . Intel | -11 -10 -10 ------- Run | Yrd Mat Sub Robot Analysis Total . | . . . Derelict Logs Recovered . | . . . Drone Launches . | . . . Drone Recoveries . | . . . Exploration | -11 -10 -10 ------------- Run | Yrd Mat Sub Turns Passed 923 | 55 621 247 Spaces Moved 410 | 36 260 114 Core 3 | 2 1 . Treads 302 | . 188 114 Legs 105 | 34 71 . Wheels . | . . . Hover . | . . . Flight . | . . . Fastest Speed 50 | 50 120 160 Average Speed 149 | 116 149 160 Slowest Speed 190 | 120 190 160 Overloaded Moves . | . . . Propulsion Burnouts . | . . . Robots Hopped . | . . . Cave-ins Triggered . | . . . Exploration Rate (%) 17 | 3 38 10 Regions Visited 2 Branch Regions 1 Pre-discovered Areas . | . . . Known Exits Taken . | . . . Unknown Exits Taken 2 | 1 1 . Scrap Searched . | . . . Spaces Dug . | . . . Terrain Destroyed . | . . . Melee . | . . . Projectile . | . . . AOE . | . . . Terrain Rammed . | . . . Walls Destroyed . | . . . Machines Disabled . | . . . Actions | -11 -10 -10 --------- Run | Yrd Mat Sub Total 647 | 46 447 154 Wait 150 | 1 134 15 Move 408 | 35 259 114 Hop . | . . . Pick Up 12 | 4 7 1 Fast Attach 20 | 6 13 1 Attach 7 | . 1 6 Detach . | . . . Swap . | . . . Drop 6 | . 4 2 Fire 40 | . 27 13 Melee . | . . . Ram . | . . . Kick . | . . . Crush 2 | . 2 . Escape Stasis . | . . . Rewire . | . . . Trap . | . . . Miscellaneous 2 | . . 2 Route ------- -11/Scrapyard -10/Materials -10/Subcaves History --------- Turn | Location | Event 8 | -11/Scrapyard | Discovered new exit (range 16) 56 | -11/Scrapyard | Entered Materials 156 | -10/Materials | Core integrity fell below 50% 170 | -10/Materials | Lost 3 parts (1n2w) 315 | -10/Materials | Build established: Mutant 660 | -10/Materials | Discovered new exit (range 8) 677 | -10/Materials | Entered Subcaves 779 | -10/Subcaves | Core integrity fell below 20% 789 | -10/Subcaves | Lost 3 parts (2n1w) 924 | -10/Subcaves | Destroyed by OO-5WH(R) with Subdweller Laser Last Messages --------------- 00830_ Dropped Sml. Storage Unit. 00831_ Dropped Imp. Heat Sink. 00832_ 54-4KD(R) affixes Scrap Shield Fragment to Scrap Shield. 00835_ Subatomizers dissect the Sub. Optics. 00837_ 54-4KD(R) misfires. 00837_ 54-4KD(R) destroyed. 00837_ Acquired 31 matter. 00840_ Acquired Scrap Shield. 00844_ Scrap Shield Fragment affixed to Scrap Shield (+23). 00848_ Scrap Shield Fragment affixed to Scrap Shield (+47). 00852_ Acquired Sml. Storage Unit. 00856_ Acquired 31 matter. 00858_ Subatomizers dissect the Sub. Optics. 00874_ 3ZVSUHU7UD#OLHDVNHQ1AD%Z%JQ C2T QZBJSXH 00886_ Subatomizers dissect the Sub. Optics. 00897_ IGUNIHVZS<7PJI17T8WHTUZY#ABR8OJHA 00916_ System corrupted: Component data lost. Map ----- +----------------------------------------------------+ | #"# ## #?# ""?????????????????????????????????? | | ## """ ### ###???????????????????????????????? | | #" " #"""" ##??????????????????????????????? | | # """""""####???????????????????????????? | | "##"###?????????????????????????? | | # "" ""##????????????????????????? | | # ## ""#????????????????????????? | | #"$$"# "#????????????????????????? | | #"$$"# "#"" ""#????????????????????????? | | " " ##""## ##"" ""#### #???????????????????? | | # # #### ## #???????????????????? | | #### # " ##???###?????????????? | | ##??## "" ##???##"###???????????? | | #????# ## ### """#???##"" #???????????? | | ????### ## ###""""""??## " #??????? ???? | | ??????#### ##"""" ### ###### ??? | | ????????## """#####""" ??? | | ?????### # ""##??#"""""" ?????? | | #???# "" #######???#"" """ #????????? | | #??# " ##???###" " R #?????????? | | ### !"" #??## "" R #?????????? | | ?? #" #### "" # #?????????? | | ?? #" ## "" ##? #?????????? | | ?? ; & # "" ##??? ????????? | | ?? ## ; ;;# ""##?????? ???????? | | ??? ????### # @ """####???????? ?????? | | ?? ??????????#; ""##???????????? ????? | | ??????????????#; ""##??????????????#???? | | ????????????### #??????????????????? | | ???????????## #??????????????????? | | ???????????# #??????????????????? | | ???????????# ####### ### #??????????????????? | | ???????????# ##?????#####?# ###??????????????????? | | ???????????###?????????????##????????????????????? | | ?????????????????????????????????????????????????? | | ?????????????????????????????????????????????????? | | ?????????????????????????????????????????????????? | | ?????????????????????????????????????????????????? | | ?????????????????????????????????????????????????? | | ?????????????????????????????????????????????????? | | ?????????????????????????????????????????????????? | | ?????????????????????????????????????????????????? | | ?????????????????????????????????????????????????? | | ?????????????????????????????????????????????????? | | ?????????????????????????????????????????????????? | | ?????????????????????????????????????????????????? | | ?????????????????????????????????????????????????? | | ?????????????????????????????????????????????????? | | | | | +----------------------------------------------------+ Best States ------------- Heat Dissipation 39 Energy Generation 10 Energy Capacity 250 Matter Stores 251 Matter Capacity 300 Sight Range 16 Terrain Scan Density 10 Armor Coverage 800 Evasion (%) 55 Recoil Reduction 2 Item Schematics ----------------- None Robot Schematics ------------------ None Fabricated ------------ Nothing Alien Tech Used ----------------- None Achievements -------------- None Challenges ------------ None Game ------ Seed ExplosiveTargetArray Manual? 0 Play Time 00:09:45 Cumulative 16.2 hours Start 2024.04.24 @ 22:48:07 End 2024.04.24 @ 22:56:29 Sessions 1 Manual Loads 0 Difficulty Rogue Special Mode None Game No. 11 Rogue 11 Adventurer 0 Explorer 0 Win Type - Total 2 Types 2/0/0/0/0/0/0/0/0 Lore% 25 Gallery% 21 Achievement% 26 Wizard Run 0 Options --------- Layout 1 ASCII 0 Keyboard 0 Movement Vi Keybinds 0 Fullscreen 1 Font 18/SmallcapsGlow Map View 54x44 Zoom Use 1% Tactical HUD 1 Map Filters NONE Filters NONE Steam 0 RUN: a57aea24-6306-41f2-9b13-808cb1573f52